fUSD/lending_fUSD_20240419
["ID","MTS","AMOUNT","RATE_DAILY","PERIOD"]
[322972460,1713550258664,-500.0,0.00016712,2]
[322972461,1713550258674,-2903.13,0.00016712,2]
[322972462,1713550258684,-2057.09,0.00016712,2]
[322972463,1713550258694,-500.0,0.00016712,2]
[322972464,1713550258704,-983.0,0.00016712,2]
[322972465,1713550258713,-500.0,0.00016712,2]
[322972466,1713550258726,-993.39,0.00016712,2]
[322972467,1713550258736,-4749.84,0.00016712,2]
[322972468,1713550258746,-500.0,0.00016712,2]
[322972469,1713550258757,-500.0,0.00016712,2]
[322972470,1713550258769,-500.0,0.00016712,2]
[322972471,1713550258778,-500.0,0.00016712,2]
[322972472,1713550258788,-1686.03,0.00016712,2]
[322972473,1713550258798,-2279.27,0.00016712,2]
[322972474,1713550258808,-500.0,0.00016712,2]
[322972475,1713550258818,-11179.26,0.00016712,2]
[322972476,1713550258828,-2538.81,0.00016712,2]
[322972477,1713550258937,-1445.92,0.00016712,2]
[322972478,1713550258946,-500.0,0.00016712,2]
[322972479,1713550258956,-503.13,0.00016712,2]
[322972480,1713550258965,-1438.25,0.00016712,2]
[322972481,1713550258976,-500.0,0.00016712,2]
[322972482,1713550258985,-712.12,0.00016712,2]
[322972483,1713550258994,-10359.81,0.00016712,2]
[322972484,1713550259003,-2733.78,0.00016712,2]
[322972485,1713550259012,-500.0,0.00016712,2]
[322972486,1713550259021,-500.0,0.00016712,2]
[322972487,1713550259030,-440.39644501,0.00016712,2]
[322972488,1713550259040,-892.9,0.00016712,2]
[322972489,1713550259049,-2625.45,0.00016712,2]
[322972490,1713550259060,-500.0,0.00016712,2]
[322972491,1713550259070,-2739.28,0.00016712,2]
[322972492,1713550259080,-500.0,0.00016712,2]
[322972493,1713550259090,-3965.39,0.00016712,2]
[322972494,1713550259100,-2605.19,0.00016712,2]
[322972495,1713550259110,-1396.75,0.00016712,2]
[322972496,1713550259119,-2508.83,0.00016712,2]
[322972497,1713550259129,-500.0,0.00016712,2]
[322972498,1713550259138,-2827.48,0.00016712,2]
[322972499,1713550259148,-500.0,0.00016712,2]
[322972500,1713550259157,-666.8,0.00016712,2]
[322972501,1713550259166,-1659.81,0.00016712,2]
[322972502,1713550259176,-1359.47,0.00016712,2]
[322972503,1713550259186,-1824.21,0.00016712,2]
[322972504,1713550259202,-849.69,0.00016712,2]
[322972505,1713550259211,-828.46,0.00016712,2]
[322972506,1713550259221,-500.0,0.00016712,2]
[322972507,1713550259231,-537.22,0.00016712,2]
[322972508,1713550259240,-1861.6,0.00016712,2]
[322972509,1713550259250,-500.0,0.00016712,2]
[322972510,1713550259259,-500.0,0.00016712,2]
[322972511,1713550259269,-1564.08,0.00016712,2]
[322972512,1713550259279,-697.99,0.00016712,2]
[322972513,1713550259289,-7208.09,0.00016712,2]
[322972514,1713550259299,-500.0,0.00016712,2]
[322972515,1713550259309,-2082.85,0.00016712,2]
[322972516,1713550259318,-803.9,0.00016712,2]
[322972517,1713550259327,-601.54,0.00016712,2]
[322972518,1713550259337,-592.26,0.00016712,2]
[322972519,1713550259346,-1071.64,0.00016712,2]
[322972520,1713550259356,-3131.36,0.00016712,2]
[322972521,1713550259365,-500.0,0.00016712,2]
[322972522,1713550259375,-500.0,0.00016712,2]
[322972523,1713550259384,-643.97,0.00016712,2]
[322972524,1713550259394,-500.0,0.00016712,2]
[322972525,1713550259403,-500.0,0.00016712,2]
[322972526,1713550259412,-1287.5,0.00016712,2]
[322972527,1713550259421,-500.0,0.00016712,2]
[322972528,1713550259430,-697.03,0.00016712,2]
[322972529,1713550259439,-500.0,0.00016712,2]
[322972530,1713550259448,-3888.25,0.00016712,2]
[322972531,1713550259458,-2048.81,0.00016712,2]
[322972532,1713550259467,-500.0,0.00016712,2]
[322972533,1713550259479,-2670.31,0.00016712,2]
[322972534,1713550259489,-500.0,0.00016712,2]
[322972535,1713550259498,-4529.04,0.00016712,2]
[322972536,1713550259507,-926.8,0.00016712,2]
[322972537,1713550259517,-1153.13,0.00016712,2]
[322972538,1713550259526,-1481.24,0.00016712,2]
[322972539,1713550259538,-500.0,0.00016712,2]
[322972540,1713550259547,-1799.04,0.00016712,2]
[322972541,1713550259556,-3509.32,0.00016712,2]
[322972542,1713550259565,-611.48,0.00016712,2]
[322972543,1713550259575,-22821.23,0.00016712,2]
[322972544,1713550259585,-500.0,0.00016712,2]
[322972545,1713550259595,-2526.81,0.00016712,2]
[322972546,1713550259604,-2370.21,0.00016712,2]
[322972547,1713550259613,-500.0,0.00016712,2]
[322972548,1713550259623,-1243.82,0.00016712,2]
[322972549,1713550259632,-500.0,0.00016712,2]
[322972550,1713550259642,-500.0,0.00016712,2]
[322972551,1713550259653,-500.0,0.00016712,2]
[322972552,1713550259662,-2158.13,0.00016712,2]
[322972553,1713550259671,-750.0,0.00016712,2]
[322972554,1713550259680,-1988.26,0.00016712,2]
[322972555,1713550259689,-887.64,0.00016712,2]
[322972556,1713550259699,-500.0,0.00016712,2]
[322972557,1713550259709,-710.05,0.00016712,2]
[322972558,1713550259718,-2848.83,0.00016712,2]
[322972559,1713550259732,-2152.67,0.00016712,2]
[322972560,1713550259741,-674.0,0.00016712,2]
[322972561,1713550259751,-4664.54,0.00016712,2]
[322972562,1713550259761,-1473.22,0.00016712,2]
[322972563,1713550259770,-825.5,0.00016712,2]
[322972564,1713550259779,-1558.01,0.00016712,2]
[322972565,1713550259788,-500.0,0.00016712,2]
[322972566,1713550259798,-3745.44,0.00016712,2]
[322972567,1713550259809,-6923.6,0.00016712,2]
[322972568,1713550259820,-3308.99,0.00016712,2]
[322972569,1713550259829,-500.0,0.00016712,2]
[322972570,1713550259839,-4669.18,0.00016712,2]
[322972571,1713550259849,-981.1,0.00016712,2]
[322972572,1713550259858,-1665.47,0.00016712,2]
[322972573,1713550259867,-432.88,0.00016712,2]
[322972574,1713550259876,-763.31,0.00016712,2]
[322972575,1713550259886,-500.0,0.00016712,2]
[322972576,1713550259896,-691.84,0.00016712,2]
[322972577,1713550259905,-748.5,0.00016712,2]
[322972578,1713550259916,-500.0,0.00016712,2]
[322972579,1713550259926,-519.9,0.00016712,2]
[322972580,1713550259936,-1038.53,0.00016712,2]
[322972581,1713550259946,-1488.12,0.00016712,2]
[322972582,1713550259958,-500.0,0.00016712,2]
[322972583,1713550259969,-910.64,0.00016712,2]
[322972584,1713550259981,-2035.0,0.00016712,2]
[322972585,1713550259990,-2936.05,0.00016712,2]
[322972586,1713550260002,-769.33,0.00016712,2]
[322972587,1713550260013,-2335.48,0.00016712,2]
[322972588,1713550260024,-500.0,0.00016712,2]
[322972589,1713550260034,-500.0,0.00016712,2]
[322972590,1713550260045,-500.0,0.00016712,2]
[322972591,1713550260055,-2091.97,0.00016712,2]
[322972592,1713550260065,-1433.39,0.00016712,2]
[322972593,1713550260074,-500.0,0.00016712,2]
[322972594,1713550260084,-2284.57,0.00016712,2]
[322972595,1713550260093,-1173.86,0.00016712,2]
[322972596,1713550260103,-3333.61,0.00016712,2]
[322972597,1713550260114,-500.0,0.00016712,2]
[322972598,1713550260123,-880.67,0.00016712,2]
[322972599,1713550260133,-1496.61,0.00016712,2]
[322972600,1713550260143,-551.88,0.00016712,2]
[322972601,1713550260153,-500.0,0.00016712,2]
[322972602,1713550260163,-1776.01,0.00016712,2]
[322972603,1713550260173,-1541.61,0.00016712,2]
[322972604,1713550260182,-1871.58,0.00016712,2]
[322972605,1713550260193,-500.0,0.00016712,2]
[322972606,1713550260203,-518.74,0.00016712,2]
[322972607,1713550260213,-961.23,0.00016712,2]
[322972608,1713550260225,-500.0,0.00016712,2]
[322972609,1713550260237,-1770.53,0.00016712,2]
[322972610,1713550260248,-500.0,0.00016712,2]
[322972611,1713550260259,-1047.63,0.00016712,2]
[322972612,1713550260269,-675.15,0.00016712,2]
[322972613,1713550260278,-974.5,0.00016712,2]
[322972614,1713550260288,-1384.11,0.00016712,2]
[322972615,1713550260297,-251.10090226,0.00016712,2]
[322972616,1713550260307,-2166.27,0.00016712,2]
[322972617,1713550260317,-500.0,0.00016712,2]
[322972618,1713550260326,-1641.9,0.00016712,2]
[322972619,1713550260337,-7156.86,0.00016712,2]
[322972620,1713550260347,-500.0,0.00016712,2]
[322972621,1713550260357,-500.0,0.00016712,2]
[322972622,1713550260366,-563.49,0.00016712,2]
[322972623,1713550260376,-1714.88,0.00016712,2]
[322972624,1713550260385,-500.0,0.00016712,2]
[322972625,1713550260394,-712.06,0.00016712,2]
[322972626,1713550260404,-2853.0,0.00016712,2]
[322972627,1713550260413,-500.0,0.00016712,2]
[322972628,1713550260423,-1744.72,0.00016712,2]
[322972629,1713550260433,-1145.41,0.00016712,2]
[322972630,1713550260443,-500.0,0.00016712,2]
[322972631,1713550260453,-500.0,0.00016712,2]
[322972632,1713550260463,-647.96,0.00016712,2]
[322972633,1713550260474,-640.77973846,0.00016712,2]
[322972634,1713550260483,-500.0,0.00016712,2]
[322972635,1713550260493,-4554.5,0.00016712,2]
[322972636,1713550260502,-1686.92,0.00016712,2]
[322972637,1713550260512,-1887.51,0.00016712,2]
[322972638,1713550260523,-500.0,0.00016712,2]
[322972639,1713550260533,-571.55,0.00016712,2]
[322972640,1713550260543,-1248.95,0.00016712,2]
[322972641,1713550260554,-500.0,0.00016712,2]
[322972642,1713550260565,-1314.27,0.00016712,2]
[322972643,1713550260574,-500.0,0.00016712,2]
[322972644,1713550260584,-500.0,0.00016712,2]
[322972645,1713550260594,-358.41027818,0.00016712,2]
[322972646,1713550260606,-500.0,0.00016712,2]
[322972647,1713550260616,-1027.2,0.00016712,2]
[322972648,1713550260625,-373.49496543,0.00016712,2]
[322972649,1713550260634,-3137.2,0.00016712,2]
[322972650,1713550260643,-1014.94,0.00016712,2]
[322972651,1713550260653,-500.0,0.00016712,2]
[322972652,1713550260664,-500.0,0.00016712,2]
[322972653,1713550260675,-624.81456752,0.00016712,2]
[322972654,1713550260685,-500.0,0.00016712,2]
[322972655,1713550260695,-500.0,0.00016712,2]
[322972656,1713550260707,-625.92,0.00016712,2]
[322972657,1713550260718,-5154.02,0.00016712,2]
[322972658,1713550260731,-2280.67,0.00016712,2]
[322972659,1713550260741,-1884.41,0.00016712,2]
[322972660,1713550260752,-500.0,0.00016712,2]
[322972661,1713550260763,-1647.2,0.00016712,2]
[322972662,1713550260773,-740.45,0.00016712,2]
[322972663,1713550260783,-500.0,0.00016712,2]
[322972664,1713550260792,-509.09,0.00016712,2]
[322972665,1713550260801,-2354.29,0.00016712,2]
[322972666,1713550260811,-517.72,0.00016712,2]
[322972667,1713550260821,-500.0,0.00016712,2]
[322972668,1713550260831,-5651.87,0.00016712,2]
[322972669,1713550260842,-510.16,0.00016712,2]
[322972670,1713550260851,-500.0,0.00016712,2]
[322972671,1713550260863,-500.0,0.00016712,2]
[322972672,1713550260873,-500.0,0.00016712,2]
[322972673,1713550260884,-178.2,0.00016712,2]
[322972674,1713550260894,-10000.0,0.00016712,2]
[322972675,1713550260903,-1000.0,0.00016718,2]
[322972676,1713550260913,-1035.76466547,0.00016734,2]
[322972677,1713550260923,-1000.0,0.00016774,2]
[322972678,1713550260933,-1000.0,0.0001683,2]
[322972679,1713550260943,-241.96832674,0.0001684,2]
[322972680,1713550260954,-497.81104563,0.0001684,2]
[322972681,1713550260963,-350.0,0.0001686,2]
[322972682,1713550260975,-1000.0,0.00016886,2]
[322972683,1713550260984,-1000.0,0.00016896,2]
[322972684,1713550260993,-272.08792267,0.000169,2]
[322972685,1713550261002,-49793.87027983,0.000169,2]
[322972686,1713550261012,-152.046983,0.000169,2]
[322972687,1713550261021,-151.0,0.000169,2]
[322972688,1713550261033,-151.0,0.000169,2]
[322972689,1713550261044,-151.875915,0.000169,2]
[322972690,1713550261056,-151.0,0.000169,2]
[322972691,1713550261066,-151.0,0.000169,2]
[322972692,1713550261075,-151.0,0.000169,2]
[322972693,1713550261085,-151.0,0.000169,2]
[322972694,1713550261094,-151.0,0.000169,2]
[322972695,1713550261103,-151.0,0.000169,2]
[322972696,1713550261113,-151.0,0.000169,2]
[322972697,1713550261123,-151.0,0.000169,2]
[322972698,1713550261132,-214.602242,0.000169,2]
[322972699,1713550261141,-177.4906,0.000169,2]
[322972700,1713550261151,-177.4906,0.000169,2]
[322972701,1713550261161,-171.014265,0.000169,2]
[322972702,1713550261170,-151.0,0.000169,2]
[322972703,1713550261180,-171.014265,0.000169,2]
[322972704,1713550261190,-152.466933,0.000169,2]
[322972705,1713550261203,-151.0,0.000169,2]
[322972706,1713550261212,-965.24,0.00016906,2]
[322972707,1713550261221,-151.0,0.00016928,2]
[322972708,1713550261233,-159.77353,0.00016928,2]
[322972709,1713550261244,-151.0,0.00016928,2]
[322972710,1713550261253,-195.769626,0.00016928,2]
[322972711,1713550261263,-421.572395,0.00016928,2]
[322972712,1713550261274,-151.0,0.00016928,2]
[322972713,1713550261283,-421.572395,0.00016928,2]
[322972714,1713550261294,-151.0,0.00016928,2]
[322972715,1713550261305,-151.0,0.00016928,2]
[322972716,1713550261315,-151.0,0.00016928,2]
[322972717,1713550261325,-176.923621,0.00016928,2]
[322972718,1713550261335,-342023.35338594,0.00016929,5]
[322972719,1713550261344,-151.0,0.00016929,2]
[322972720,1713550261355,-151.0,0.00016929,2]
[322972721,1713550261365,-197.514074,0.00016929,2]
[322972722,1713550261374,-197.514074,0.00016929,2]
[322972723,1713550261383,-151.0,0.00016929,2]
[322972724,1713550261393,-151.0,0.00016929,2]
[322972725,1713550261402,-151.0,0.00016929,2]
[322972726,1713550261411,-151.0,0.00016929,2]
[322972727,1713550261420,-151.0,0.00016929,2]
[322972728,1713550261430,-220.674759,0.00016929,2]
[322972729,1713550261439,-151.0,0.00016929,2]
[322972730,1713550261448,-220.674759,0.00016929,2]
[322972731,1713550261458,-203.131795,0.00016929,2]
[322972732,1713550261471,-203.131795,0.00016929,2]
[322972733,1713550261483,-151.0,0.00016929,2]
[322972734,1713550261495,-151.0,0.00016929,2]
[322972735,1713550261505,-151.0,0.00016929,2]
[322972736,1713550261516,-151.0,0.00016929,2]
[322972737,1713550261527,-151.0,0.00016929,2]
[322972738,1713550261539,-264.89767,0.00016929,2]
[322972739,1713550261549,-151.0,0.00016929,2]
[322972740,1713550261560,-151.0,0.00016929,2]
[322972741,1713550261570,-230.540431,0.00016929,2]
[322972742,1713550261580,-151.0,0.00016929,2]
[322972743,1713550261590,-151.0,0.00016929,2]
[322972744,1713550261600,-151.788985,0.00016929,2]
[322972745,1713550261610,-151.0,0.00016929,2]
[322972746,1713550261623,-239.300244,0.00016929,2]
[322972747,1713550261634,-151.0,0.00016929,2]
[322972748,1713550261645,-239.300244,0.00016929,2]
[322972749,1713550261656,-151.0,0.00016929,2]
[322972750,1713550261667,-256.428278,0.00016929,2]
[322972751,1713550261677,-151.0,0.00016929,2]
[322972752,1713550261688,-256.428278,0.00016929,2]
[322972753,1713550261699,-569.177016,0.00016929,2]
[322972754,1713550261709,-569.177016,0.00016929,2]
[322972755,1713550261721,-152.112936,0.00016929,2]
[322972756,1713550261732,-152.112936,0.00016929,2]
[322972757,1713550261742,-151.0,0.00016929,2]
[322972758,1713550261752,-151.0,0.00016929,2]
[322972759,1713550261762,-770.6304,0.00016929,2]
[322972760,1713550261771,-770.6304,0.00016929,2]
[322972761,1713550261784,-274.294674,0.00016929,2]
[322972762,1713550261796,-274.294674,0.00016929,2]
[322972763,1713550261806,-151.0,0.00016929,2]
[322972764,1713550261815,-151.0,0.00016929,2]
[322972765,1713550261824,-151.0,0.00016929,2]
[322972766,1713550261834,-151.0,0.00016929,2]
[322972767,1713550261843,-1000.0,0.00016942,2]
[322972768,1713550261853,-163.0,0.0001695,2]
[322972769,1713550261865,-500.0,0.00016986,2]
[322972770,1713550261874,-1039.36,0.00016986,2]
[322972771,1713550261887,-500.0,0.00016986,2]
[322972772,1713550261898,-500.0,0.00016986,2]
[322972773,1713550261917,-313.05763741,0.00016986,2]
[322972774,1713550261928,-500.0,0.00016986,2]
[322972775,1713550261938,-500.0,0.00016986,2]
[322972776,1713550261947,-500.0,0.00016986,2]
[322972777,1713550261957,-737.6,0.00016986,2]
[322972778,1713550261967,-500.0,0.00016986,2]
[322972779,1713550261977,-500.0,0.00016986,2]
[322972780,1713550261987,-510.03,0.00016986,2]
[322972781,1713550261996,-824.7,0.00016986,2]
[322972782,1713550262006,-1028.85,0.00016986,2]
[322972783,1713550262016,-500.0,0.00016986,2]
[322972784,1713550262026,-669.58,0.00016986,2]
[322972785,1713550262036,-500.0,0.00016986,2]
[322972786,1713550262046,-500.0,0.00016986,2]
[322972787,1713550262056,-500.0,0.00016986,2]
[322972788,1713550262066,-843.86,0.00016986,2]
[322972789,1713550262076,-500.0,0.00016986,2]
[322972790,1713550262086,-500.0,0.00016986,2]
[322972791,1713550262096,-500.0,0.00016986,2]
[322972792,1713550262106,-785.89,0.00016986,2]
[322972793,1713550262116,-500.0,0.00016986,2]
[322972794,1713550262126,-500.0,0.00016986,2]
[322972795,1713550262136,-500.0,0.00016986,2]
[322972796,1713550262146,-729.76,0.00016986,2]
[322972797,1713550262155,-500.0,0.00016986,2]
[322972798,1713550262166,-1041.49,0.00016986,2]
[322972799,1713550262175,-500.0,0.00016986,2]
[322972800,1713550262185,-864.76,0.00016986,2]
[322972801,1713550262200,-500.0,0.00016986,2]
[322972802,1713550262210,-500.0,0.00016986,2]
[322972803,1713550262220,-500.0,0.00016986,2]
[322972804,1713550262232,-500.0,0.00016986,2]
[322972805,1713550262242,-524.99,0.00016986,2]
[322972806,1713550262251,-500.0,0.00016986,2]
[322972807,1713550262261,-500.0,0.00016986,2]
[322972808,1713550262271,-500.0,0.00016986,2]
[322972809,1713550262281,-821.38,0.00016986,2]
[322972810,1713550262290,-500.0,0.00016986,2]
[322972811,1713550262299,-500.0,0.00016986,2]
[322972812,1713550262308,-541.76,0.00016986,2]
[322972813,1713550262317,-500.0,0.00016986,2]
[322972814,1713550262326,-1292.38,0.00016986,2]
[322972815,1713550262335,-500.0,0.00016986,2]
[322972816,1713550262345,-500.0,0.00016986,2]
[322972817,1713550262355,-568.29,0.00016986,2]
[322972818,1713550262365,-500.0,0.00016986,2]
[322972819,1713550262375,-1152.89,0.00016986,2]
[322972820,1713550262384,-500.0,0.00016986,2]
[322972821,1713550262394,-553.82,0.00016986,2]
[322972822,1713550262404,-500.0,0.00016986,2]
[322972823,1713550262414,-792.7,0.00016986,2]
[322972824,1713550262425,-1140.35,0.00016986,2]
[322972825,1713550262435,-500.0,0.00016986,2]
[322972826,1713550262445,-500.0,0.00016986,2]
[322972827,1713550262454,-500.0,0.00016986,2]
[322972828,1713550262464,-624.37,0.00016986,2]
[322972829,1713550262473,-545.52,0.00016986,2]
[322972830,1713550262484,-673.43,0.00016986,2]
[322972831,1713550262494,-840.66,0.00016986,2]
[322972832,1713550262505,-500.0,0.00016986,2]
[322972833,1713550262515,-500.0,0.00016986,2]
[322972834,1713550262526,-500.0,0.00016986,2]
[322972835,1713550262535,-500.0,0.00016986,2]
[322972836,1713550262545,-500.0,0.00016986,2]
[322972837,1713550262554,-500.0,0.00016986,2]
[322972838,1713550262564,-1632.9,0.00016986,2]
[322972839,1713550262573,-709.84,0.00016986,2]
[322972840,1713550262584,-624.85,0.00016986,2]
[322972841,1713550262594,-601.09,0.00016986,2]
[322972842,1713550262604,-500.0,0.00016986,2]
[322972843,1713550262615,-500.0,0.00016986,2]
[322972844,1713550262624,-500.0,0.00016986,2]
[322972845,1713550262634,-500.0,0.00016986,2]
[322972846,1713550262643,-500.0,0.00016986,2]
[322972847,1713550262652,-626.24,0.00016986,2]
[322972848,1713550262661,-678.02,0.00016986,2]
[322972849,1713550262670,-500.0,0.00016986,2]
[322972850,1713550262681,-917.02,0.00016986,2]
[322972851,1713550262690,-500.0,0.00016986,2]
[322972852,1713550262699,-500.0,0.00016986,2]
[322972853,1713550262708,-722.61,0.00016986,2]
[322972854,1713550262717,-557.42,0.00016986,2]
[322972855,1713550262727,-500.0,0.00016986,2]
[322972856,1713550262736,-500.0,0.00016986,2]
[322972857,1713550262745,-500.0,0.00016986,2]
[322972858,1713550262754,-235.18,0.00016986,2]
[322972859,1713550262763,-500.0,0.00016986,2]
[322972860,1713550262772,-634.15,0.00016986,2]
[322972861,1713550262781,-564.97,0.00016986,2]
[322972862,1713550262790,-757.29,0.00016986,2]
[322972863,1713550262799,-500.0,0.00016986,2]
[322972864,1713550262809,-500.0,0.00016986,2]
[322972865,1713550262818,-500.0,0.00016986,2]
[322972866,1713550262827,-500.0,0.00016986,2]
[322972867,1713550262837,-500.0,0.00016986,2]
[322972868,1713550262846,-233.28124876,0.00016986,2]
[322972869,1713550262855,-500.0,0.00016986,2]
[322972870,1713550262863,-500.0,0.00016986,2]
[322972871,1713550262872,-1295.17,0.00016986,2]
[322972872,1713550262881,-1264.11,0.00016986,2]
[322972873,1713550262889,-500.0,0.00016986,2]
[322972874,1713550262898,-500.0,0.00016986,2]
[322972875,1713550262907,-500.0,0.00016986,2]
[322972876,1713550262916,-833.84,0.00016986,2]
[322972877,1713550262925,-1172.05,0.00016986,2]
[322972878,1713550262934,-675.87,0.00016986,2]
[322972879,1713550262943,-500.0,0.00016986,2]
[322972880,1713550262953,-500.0,0.00016986,2]
[322972881,1713550262961,-507.07,0.00016986,2]
[322972882,1713550262971,-1494.08,0.00016986,2]
[322972883,1713550262982,-630.61,0.00016986,2]
[322972884,1713550262991,-628.61,0.00016986,2]
[322972885,1713550263000,-622.74,0.00016986,2]
[322972886,1713550263009,-500.0,0.00016986,2]
[322972887,1713550263018,-560.64,0.00016986,2]
[322972888,1713550263027,-632.47,0.00016986,2]
[322972889,1713550263037,-500.0,0.00016986,2]
[322972890,1713550263048,-500.0,0.00016986,2]
[322972891,1713550263057,-500.0,0.00016986,2]
[322972892,1713550263066,-500.0,0.00016986,2]
[322972893,1713550263076,-519.62,0.00016986,2]
[322972894,1713550263086,-500.0,0.00016986,2]
[322972895,1713550263096,-500.0,0.00016986,2]
[322972896,1713550263105,-500.0,0.00016986,2]
[322972897,1713550263114,-778.12,0.00016986,2]
[322972898,1713550263124,-500.0,0.00016986,2]
[322972899,1713550263134,-500.0,0.00016986,2]
[322972900,1713550263143,-769.94,0.00016986,2]
[322972901,1713550263153,-500.0,0.00016986,2]
[322972902,1713550263278,-500.0,0.00016986,2]
[322972903,1713550263300,-500.0,0.00016986,2]
[322972904,1713550263309,-918.98,0.00016986,2]
[322972905,1713550263319,-1119.71,0.00016986,2]
[322972906,1713550263329,-500.0,0.00016986,2]
[322972907,1713550263340,-678.94,0.00016986,2]
[322972908,1713550263350,-1195.54,0.00016986,2]
[322972909,1713550263359,-500.0,0.00016986,2]
[322972910,1713550263369,-500.0,0.00016986,2]
[322972911,1713550263379,-713.09,0.00016986,2]
[322972912,1713550263388,-546.45,0.00016986,2]
[322972913,1713550263398,-1108.92,0.00016986,2]
[322972914,1713550263407,-628.66,0.00016986,2]
[322972915,1713550263417,-500.0,0.00016986,2]
[322972916,1713550263427,-500.0,0.00016986,2]
[322972917,1713550263437,-500.0,0.00016986,2]
[322972918,1713550263447,-665.31,0.00016986,2]
[322972919,1713550263457,-500.0,0.00016986,2]
[322972920,1713550263466,-500.0,0.00016986,2]
[322972921,1713550263478,-500.0,0.00016986,2]
[322972922,1713550263488,-151.0,0.00016986,2]
[322972923,1713550263498,-774.86,0.00016986,2]
[322972924,1713550263507,-803.88,0.00016986,2]
[322972925,1713550263518,-500.0,0.00016986,2]
[322972926,1713550263527,-500.0,0.00016986,2]
[322972927,1713550263537,-619.43,0.00016986,2]
[322972928,1713550263547,-500.0,0.00016986,2]
[322972929,1713550263556,-500.0,0.00016986,2]
[322972930,1713550263565,-500.0,0.00016986,2]
[322972931,1713550263575,-1238.09,0.00016986,2]
[322972932,1713550263585,-812.22,0.00016986,2]
[322972933,1713550263594,-635.57,0.00016986,2]
[322972934,1713550263603,-500.0,0.00016986,2]
[322972935,1713550263614,-500.0,0.00016986,2]
[322972936,1713550263624,-1066.58,0.00016986,2]
[322972937,1713550263633,-927.3,0.00016986,2]
[322972938,1713550263643,-500.0,0.00016986,2]
[322972939,1713550263653,-500.0,0.00016986,2]
[322972940,1713550263663,-1052.06,0.00016986,2]
[322972941,1713550263673,-746.87,0.00016986,2]
[322972942,1713550263682,-1123.59,0.00016986,2]
[322972943,1713550263692,-500.0,0.00016986,2]
[322972944,1713550263701,-500.0,0.00016986,2]
[322972945,1713550263711,-1110.79,0.00016986,2]
[322972946,1713550263721,-857.16,0.00016986,2]
[322972947,1713550263734,-500.0,0.00016986,2]
[322972948,1713550263744,-926.62,0.00016986,2]
[322972949,1713550263753,-690.0,0.00016986,2]
[322972950,1713550263763,-500.0,0.00016986,2]
[322972951,1713550263773,-1082.94,0.00016986,2]
[322972952,1713550263783,-500.0,0.00016986,2]
[322972953,1713550263793,-500.0,0.00016986,2]
[322972954,1713550263802,-512.66,0.00016986,2]
[322972955,1713550263812,-593.65,0.00016986,2]
[322972956,1713550263822,-500.0,0.00016986,2]
[322972957,1713550263832,-500.0,0.00016986,2]
[322972958,1713550263841,-500.0,0.00016986,2]
[322972959,1713550263851,-500.0,0.00016986,2]